[Event "V Copa Marcel Duchamp 2022"]
[Site "Montevideo"]
[Date "2022.02.12"]
[Round "1.22"]
[White "Montiel Caceres, Helen"]
[Black "Spata, German"]
[Result "0-1"]
[ECO "D45"]
[WhiteElo "1625"]
[BlackElo "2300"]
[Annotator "RC"]
[PlyCount "60"]
[EventDate "2022.02.12"]
[EventCountry "URU"]
[SourceTitle "playchess.com"]
[Source "ChessBase"]
[SourceQuality "1"]
[TimeControl "5400+30"]

1. d4 e6 2. c4 Nf6 3. Nf3 d5 4. Nc3 c6 5. e3 Nbd7 6. b3 Bd6 7. Bd3 O-O 8. O-O b6 9. Bb2 Bb7 10. Qe2 c5 11. cxd5 exd5 12. Rfd1 a6 13. Rac1 Re8 14. Na4 c4 15. Bf5 b5 16. Nc5 Bc6 17. b4 Qc7 18. g3 g6 19. Bb1 Re7 20. h4 a5 21. Bc3 Rae8 22. Qe1 Bxg3 23. Nxd7 Bxd7 24. Ne5 Bxh4 25. bxa5 Ng4 26. Rd2 f6 27. Bb4 Nxe5 28. dxe5 Rxe5 29. Rd4 Rg5+ 30. Kf1 Qh2 0-1

[Event "V Copa Marcel Duchamp 2022"]
[Site "Montevideo"]
[Date "2022.02.12"]
[Round "1.31"]
[White "Muniz, Rafael"]
[Black "Bon, Charles"]
[Result "1-0"]
[ECO "B42"]
[WhiteElo "2194"]
[BlackElo "1562"]
[Annotator "NA"]
[PlyCount "49"]
[EventDate "2022.02.12"]
[EventCountry "URU"]
[SourceTitle "playchess.com"]
[Source "ChessBase"]
[SourceQuality "1"]
[TimeControl "5400+30"]

1. e4 c5 2. Nf3 e6 3. d4 cxd4 4. Nxd4 a6 5. Bd3 Qc7 6. f4 Nc6 7. Nxc6 dxc6 8. O-O Bc5+ 9. Kh1 Nf6 10. e5 Nd5 11. Qe2 b5 12. a3 Bb7 13. Nd2 Be7 14. Ne4 c5 15. c4 bxc4 16. Bxc4 Nb6 17. Bd3 c4 18. Bc2 Rc8 19. f5 Qxe5 20. Bf4 Qd5 21. Rad1 Qc6 22. Qg4 exf5 23. Qxg7 fxe4 24. Qxh8+ Bf8 25. Bxe4 1-0

[Event "V Copa Marcel Duchamp 2022"]
[Site "Montevideo"]
[Date "2022.02.12"]
[Round "1.32"]
[White "Blanco, Rudemar Ernesto"]
[Black "Carvalho, Guillermo"]
[Result "0-1"]
[ECO "D00"]
[WhiteElo "1549"]
[BlackElo "2171"]
[Annotator "NA"]
[PlyCount "66"]
[EventDate "2022.02.12"]
[EventCountry "URU"]
[SourceTitle "playchess.com"]
[Source "ChessBase"]
[SourceQuality "1"]
[TimeControl "5400+30"]

1. d4 d5 2. Bf4 e6 {[%emt 0:00:54]} 3. e3 {[%emt 0:01:52]} Nf6 {[%emt 0:00:10]} 4. Nf3 {[%emt 0:02:17]} c5 {[%emt 0:00:16]} 5. c3 {[%emt 0:00:40]} Nc6 {[%emt 0:00:09]} 6. Nbd2 {[%emt 0:00:30]} Bd6 {[%emt 0:00:11]} 7. Bg3 {[%emt 0:01:50]} O-O {[%emt 0:04:56]} 8. Bd3 {[%emt 0:00:30]} b6 {[%emt 0:05:57]} 9. Ne5 {[%emt 0:05:10]} Bb7 {[%emt 0:02:23]} 10. Nxc6 {[%emt 0:11:00]} Bxc6 {[%emt 0:00:09]} 11. Bxd6 Qxd6 12. Nf3 {[%emt 0:01:07]} Ne4 {[%emt 0:12:46]} 13. O-O {[%emt 0:06:53]} f6 {[%emt 0:02:29]} 14. Nd2 {[%emt 0:04:34]} Nxd2 {[%emt 0:02:18]} 15. Qxd2 {[%emt 0:00:15]} e5 {[%emt 0:01:23]} 16. Be2 {[%emt 0:01:11]} Rad8 {[%emt 0:01:55]} 17. a3 {[%emt 0:12:50]} Rfe8 18. Rfe1 {[%emt 0:03:07]} Re7 {[%emt 0:06:21]} 19. Bf1 {[%emt 0:07:21]} Be8 {[%emt 0:07:57]} 20. Bd3 {[%emt 0:02:10]} Bf7 {[%emt 0:03:01]} 21. Bf5 {[%emt 0:05:48]} Rde8 {[%emt 0:03:42]} 22. g3 {[%emt 0:01:14]} Bh5 23. Bd3 {[%emt 0:01:49]} Bf3 {[%emt 0:04:36]} 24. Be2 {[%emt 0:02:01]} Be4 {[%emt 0:01:18]} 25. Bd3 exd4 {[%emt 0:01:25]} 26. Bxe4 {[%emt 0:01:10]} Rxe4 {[%emt 0:02:17]} 27. exd4 {[%emt 0:01:57]} cxd4 {[%emt 0:00:30]} 28. Rxe4 {[%emt 0:00:30]} Rxe4 {[%emt 0:02:36]} 29. cxd4 {[%emt 0:05:38]} Qe6 {[%emt 0:04:03]} 30. Rd1 {[%emt 0:03:33]} h5 {[%emt 0:02:56]} 31. h4 {[%emt 0:03:09]} Re2 {[%emt 0:01:04]} 32. Qc3 {[%emt 0:02:28]} Qf5 {[%emt 0:00:51]} 33. f3 {[%emt 0:00:30]} Qh3 0-1

[Event "V Copa Marcel Duchamp 2022"]
[Site "Montevideo"]
[Date "2022.02.12"]
[Round "1.33"]
[White "Granara Barreto, Sebastian"]
[Black "Agrasot, Antonio"]
[Result "1-0"]
[ECO "B12"]
[WhiteElo "2131"]
[BlackElo "1548"]
[Annotator "ChessBase"]
[PlyCount "83"]
[EventDate "2022.02.12"]
[EventCountry "URU"]
[SourceTitle "playchess.com"]
[Source "ChessBase"]
[SourceQuality "1"]
[TimeControl "5400+30"]

1. e4 c6 2. d4 d5 3. e5 Bf5 4. h4 h6 5. Bd3 Bxd3 6. Qxd3 e6 7. Be3 Nd7 8. Ne2 Qb6 9. Qb3 Qxb3 10. axb3 c5 11. Nbc3 cxd4 12. Bxd4 a6 13. O-O-O Bc5 14. f4 O-O-O 15. Bxc5 Nxc5 16. b4 Nd7 17. Nd4 Ne7 18. h5 b5 19. g4 Kb7 20. Rhe1 {[%emt 0:35:08]} Nc6 {[%emt 0:23:11]} 21. Nxc6 {[%emt 0:06:02]} Kxc6 {[%emt 0:00:10]} 22. Ne2 {[%emt 0:00:04]} Kb7 {[%emt 0:01:03]} 23. Nd4 {[%emt 0:00:12]} Nb8 {[%emt 0:00:40]} 24. f5 {[%emt 0:04:57]} Rhe8 {[%emt 0:01:44]} 25. fxe6 {[%emt 0:01:56]} fxe6 {[%emt 0:00:13]} 26. Rf1 {[%emt 0:00:05]} Rd7 {[%emt 0:00:20]} 27. Nb3 {[%emt 0:00:07]} Rc7 {[%emt 0:01:52]} 28. Nc5+ {[%emt 0:01:51]} Kb6 {[%emt 0:00:34]} 29. c3 {[%emt 0:03:10]} Nd7 {[%emt 0:00:59]} 30. Nxd7+ {[%emt 0:01:33]} Rxd7 {[%emt 0:00:11]} 31. Rd4 {[%emt 0:00:04]} Ree7 {[%emt 0:00:30]} 32. Rdf4 {[%emt 0:00:15]} Kc7 {[%emt 0:01:34]} 33. Kd2 {[%emt 0:00:15]} Kd8 {[%emt 0:03:31]} 34. Kd3 {[%emt 0:00:15]} Rc7 {[%emt 0:00:15]} 35. b3 {[%emt 0:00:36]} Kc8 {[%emt 0:01:00]} 36. Rf8+ {[%emt 0:01:52]} Kb7 {[%emt 0:00:13]} 37. R1f4 {[%emt 0:00:24]} Rc8 {[%emt 0:02:25]} 38. Rxc8 {[%emt 0:05:26]} Kxc8 {[%emt 0:00:06]} 39. Kd4 {[%emt 0:00:15]} Rc7 {[%emt 0:00:24]} 40. Rf8+ {[%emt 0:00:10]} Kb7 {[%emt 0:00:28]} 41. Re8 {[%emt 0:01:36]} Rc6 {[%emt 0:00:58]} 42. Re7+ {[%emt 0:00:14]} 1-0

[Event "V Copa Marcel Duchamp 2022"]
[Site "Montevideo"]
[Date "2022.02.12"]
[Round "1.36"]
[White "Lavandeira, Juan Bautista"]
[Black "Brizzi, Milagros Tatiana"]
[Result "0-1"]
[ECO "E09"]
[WhiteElo "1516"]
[BlackElo "2063"]
[Annotator "ChessBase"]
[PlyCount "58"]
[EventDate "2022.02.12"]
[EventCountry "URU"]
[SourceTitle "playchess.com"]
[Source "ChessBase"]
[SourceQuality "1"]
[TimeControl "5400+30"]

1. d4 d5 2. c4 c6 3. g3 Nf6 4. Bg2 e6 5. Nf3 Nbd7 6. O-O Be7 7. Qc2 O-O 8. Nbd2 b6 9. e4 Bb7 10. b3 Rc8 11. e5 Ne8 12. Bb2 Nc7 13. Rac1 a5 14. a3 c5 15. Rfd1 cxd4 16. a4 Bc5 17. Qd3 f6 18. exf6 Qxf6 19. Bxd4 e5 20. Bxc5 Nxc5 21. Qe3 e4 22. Ne1 d4 23. Qe2 Rce8 24. Qg4 Qxf2+ 25. Kh1 e3 26. Ndf3 e2 27. Rxd4 Qf1+ 28. Ng1 Bxg2+ 29. Nxg2 Qxc1 0-1

[Event "V Copa Marcel Duchamp 2022"]
[Site "Montevideo"]
[Date "2022.02.13"]
[Round "2.15"]
[White "Durante, Aurelio"]
[Black "Labollita, Martin"]
[Result "1/2-1/2"]
[ECO "B03"]
[WhiteElo "1944"]
[BlackElo "2388"]
[Annotator "RC"]
[PlyCount "66"]
[EventDate "2022.02.12"]
[EventCountry "URU"]
[SourceTitle "playchess.com"]
[Source "ChessBase"]
[SourceQuality "1"]
[TimeControl "5400+30"]

1. e4 {[%emt 0:00:00]} Nf6 {[%emt 0:00:00]} 2. e5 {[%emt 0:00:36]} Nd5 {[%emt 0:00:39]} 3. c4 {[%emt 0:00:07]} Nb6 {[%emt 0:00:04]} 4. d4 {[%emt 0:00:06]} d6 {[%emt 0:00:05]} 5. exd6 {[%emt 0:00:07]} exd6 {[%emt 0:00:07]} 6. Nc3 {[%emt 0:00:14]} Be7 {[%emt 0:00:07]} 7. Be3 {[%emt 0:00:43]} c6 {[%emt 0:01:13]} 8. h3 {[%emt 0:05:04]} Bf5 {[%emt 0:02:42]} 9. Nf3 {[%emt 0:02:30]} O-O {[%emt 0:11:49]} 10. Be2 {[%emt 0:08:37]} Re8 {[%emt 0:14:52]} 11. Qb3 {[%emt 0:14:47]} Qc8 {[%emt 0:13:38]} 12. O-O {[%emt 0:05:56]} Na6 {[%emt 0:03:30]} 13. a3 {[%emt 0:03:26]} Nd7 {[%emt 0:08:31]} 14. Rfe1 {[%emt 0:03:58]} Nc7 {[%emt 0:01:14]} 15. Rad1 {[%emt 0:01:16]} h6 {[%emt 0:00:22]} 16. d5 {[%emt 0:06:12]} c5 {[%emt 0:01:30]} 17. Bf4 {[%emt 0:01:56]} Bf8 {[%emt 0:03:49]} 18. Bf1 {[%emt 0:02:14]} Rb8 {[%emt 0:02:08]} 19. Rxe8 {[%emt 0:05:45]} Nxe8 {[%emt 0:00:34]} 20. Nd2 {[%emt 0:03:44]} a6 {[%emt 0:05:22]} 21. Re1 {[%emt 0:01:20]} Ndf6 {[%emt 0:03:02]} 22. Nce4 {[%emt 0:03:44]} Nxe4 {[%emt 0:16:19]} 23. Nxe4 {[%emt 0:00:10]} b5 {[%emt 0:00:38]} 24. cxb5 {[%emt 0:03:35]} axb5 {[%emt 0:00:07]} 25. Ng3 {[%emt 0:13:17]} Bg6 {[%emt 0:03:45]} 26. Bxb5 {[%emt 0:06:34]} Nc7 {[%emt 0:00:53]} 27. a4 {[%emt 0:00:49]} Qb7 {[%emt 0:03:32]} 28. Ne4 {[%emt 0:00:39]} Bxe4 {[%emt 0:01:33]} 29. Rxe4 {[%emt 0:00:03]} Nxd5 {[%emt 0:00:06]} 30. Qg3 {[%emt 0:04:27]} Nc3 {[%emt 0:01:34]} 31. Re1 {[%emt 0:01:00]} Nxb5 {[%emt 0:00:58]} 32. axb5 {[%emt 0:00:10]} Qxb5 {[%emt 0:01:10]} 33. Bxd6 {[%emt 0:00:33]} Bxd6 {[%emt 0:00:27]} 1/2-1/2

[Event "V Copa Marcel Duchamp 2022"]
[Site "Montevideo"]
[Date "2022.02.13"]
[Round "2.16"]
[White "Vitoux, Colomban"]
[Black "Rodriguez Farias, Eduardo"]
[Result "1-0"]
[ECO "A05"]
[WhiteElo "2372"]
[BlackElo "1931"]
[Annotator "ChessBase"]
[PlyCount "59"]
[EventDate "2022.02.12"]
[EventCountry "URU"]
[SourceTitle "playchess.com"]
[Source "ChessBase"]
[SourceQuality "1"]
[TimeControl "5400+30"]

1. Nf3 {[%emt 0:07:58]} Nf6 {[%emt 0:00:16]} 2. c4 {[%emt 0:00:19]} c5 {[%emt 0:00:29]} 3. g3 {[%emt 0:00:45]} d5 {[%emt 0:01:39]} 4. cxd5 {[%emt 0:00:07]} Nxd5 {[%emt 0:00:07]} 5. Bg2 {[%emt 0:00:38]} Nc6 {[%emt 0:00:39]} 6. b3 {[%emt 0:00:43]} e5 {[%emt 0:03:28]} 7. Bb2 {[%emt 0:00:10]} f6 {[%emt 0:00:08]} 8. O-O {[%emt 0:00:15]} Be7 {[%emt 0:03:20]} 9. Nc3 {[%emt 0:00:24]} Nc7 {[%emt 0:00:58]} 10. Rc1 {[%emt 0:01:19]} Bd7 {[%emt 0:00:28]} 11. e3 {[%emt 0:07:40]} Bg4 {[%emt 0:15:24]} 12. h3 {[%emt 0:02:18]} Bh5 {[%emt 0:00:08]} 13. g4 {[%emt 0:16:32]} Bg6 {[%emt 0:00:30]} 14. d4 {[%emt 0:01:33]} exd4 {[%emt 0:21:06]} 15. exd4 {[%emt 0:00:11]} cxd4 {[%emt 0:00:16]} 16. Ne2 {[%emt 0:01:57]} Ne6 {[%emt 0:00:32]} 17. Nfxd4 {[%emt 0:22:00]} Ncxd4 {[%emt 0:04:07]} 18. Nxd4 {[%emt 0:00:05]} Nf4 {[%emt 0:04:05]} 19. Qf3 {[%emt 0:05:15]} Nxg2 {[%emt 0:04:08]} 20. Qxg2 {[%emt 0:00:49]} Qd7 {[%emt 0:03:17]} 21. Rfd1 {[%emt 0:06:28]} Rd8 {[%emt 0:02:39]} 22. Qf3 {[%emt 0:01:10]} Qd5 {[%emt 0:03:27]} 23. Qxd5 {[%emt 0:09:57]} Rxd5 {[%emt 0:00:14]} 24. Rc7 {[%emt 0:02:52]} Kf7 {[%emt 0:21:00]} 25. f4 {[%emt 0:05:43]} h5 {[%emt 0:05:01]} 26. Re1 {[%emt 0:01:11]} Re8 {[%emt 0:00:59]} 27. Ba3 {[%emt 0:03:17]} Rxd4 {[%emt 0:00:21]} 28. f5 {[%emt 0:00:27]} Bh7 {[%emt 0:00:28]} 29. Rcxe7+ {[%emt 0:00:20]} Rxe7 {[%emt 0:00:24]} 30. Rxe7+ {[%emt 0:00:07]} 1-0

[Event "V Copa Marcel Duchamp 2022"]
[Site "Montevideo"]
[Date "2022.02.13"]
[Round "2.17"]
[White "Pinero, Ismael"]
[Black "Coro, Lucas"]
[Result "0-1"]
[ECO "B90"]
[WhiteElo "1906"]
[BlackElo "2355"]
[Annotator "ChessBase"]
[PlyCount "72"]
[EventDate "2022.02.12"]
[EventCountry "URU"]
[SourceTitle "playchess.com"]
[Source "ChessBase"]
[SourceQuality "1"]
[TimeControl "5400+30"]

1. e4 {[%emt 0:00:30]} c5 {[%emt 0:01:34]} 2. Nf3 {[%emt 0:00:07]} d6 {[%emt 0:01:00]} 3. d4 {[%emt 0:00:27]} cxd4 {[%emt 0:00:33]} 4. Nxd4 {[%emt 0:00:15]} Nf6 {[%emt 0:00:16]} 5. Nc3 {[%emt 0:00:11]} a6 {[%emt 0:00:19]} 6. f3 {[%emt 0:00:07]} e5 {[%emt 0:00:51]} 7. Nb3 {[%emt 0:00:02]} Be6 {[%emt 0:03:46]} 8. Be3 {[%emt 0:00:22]} Be7 {[%emt 0:00:14]} 9. Qd2 {[%emt 0:00:05]} O-O {[%emt 0:00:16]} 10. O-O-O {[%emt 0:00:14]} a5 {[%emt 0:00:25]} 11. Bb5 {[%emt 0:00:56]} Na6 {[%emt 0:01:41]} 12. g4 {[%emt 0:01:38]} Nc7 {[%emt 0:01:48]} 13. Qe2 {[%emt 0:13:48]} Qc8 {[%emt 0:04:40]} 14. g5 {[%emt 0:03:44]} Nh5 {[%emt 0:01:46]} 15. Kb1 {[%emt 0:04:43]} g6 {[%emt 0:15:14]} 16. Rhg1 {[%emt 0:13:17]} Kh8 {[%emt 0:00:31]} 17. h4 {[%emt 0:07:08]} Nxb5 {[%emt 0:27:25]} 18. Qxb5 {[%emt 0:06:48]} a4 {[%emt 0:00:19]} 19. Nd2 {[%emt 0:03:34]} Qc6 {[%emt 0:01:25]} 20. a3 {[%emt 0:07:01]} Rfc8 {[%emt 0:04:50]} 21. Qd3 {[%emt 0:07:23]} f5 {[%emt 0:10:35]} 22. Nd5 {[%emt 0:02:42]} Bxd5 {[%emt 0:01:19]} 23. exd5 {[%emt 0:00:04]} Qc7 {[%emt 0:01:45]} 24. c4 {[%emt 0:01:41]} Bf8 {[%emt 0:01:21]} 25. Rc1 {[%emt 0:05:35]} b6 {[%emt 0:00:28]} 26. Nf1 {[%emt 0:01:58]} Bg7 {[%emt 0:00:22]} 27. Bd2 {[%emt 0:02:48]} Rab8 {[%emt 0:01:09]} 28. Ng3 {[%emt 0:03:01]} Nf4 {[%emt 0:01:15]} 29. Bxf4 {[%emt 0:00:39]} exf4 {[%emt 0:00:08]} 30. Ne2 {[%emt 0:00:03]} Qc5 {[%emt 0:06:15]} 31. Nxf4 {[%emt 0:00:42]} b5 {[%emt 0:00:10]} 32. cxb5 {[%emt 0:02:19]} Qf2 {[%emt 0:00:19]} 33. Ne2 {[%emt 0:10:17]} Re8 {[%emt 0:00:24]} 34. Nc3 {[%emt 0:00:41]} Re3 {[%emt 0:00:16]} 35. Rgf1 {[%emt 0:00:21]} Qxb2+ {[%emt 0:00:22]} 36. Kxb2 {[%emt 0:00:19]} Rxd3 {[%emt 0:00:02]} 0-1

[Event "V Copa Marcel Duchamp 2022"]
[Site "Montevideo"]
[Date "2022.02.13"]
[Round "2.20"]
[White "Vazquez, Facundo"]
[Black "Quevedo, Andreina"]
[Result "1-0"]
[ECO "E63"]
[WhiteElo "2319"]
[BlackElo "1867"]
[Annotator "ChessBase"]
[PlyCount "47"]
[EventDate "2022.02.12"]
[EventCountry "URU"]
[SourceTitle "playchess.com"]
[Source "ChessBase"]
[SourceQuality "1"]
[TimeControl "5400+30"]

1. d4 {[%emt 0:00:04]} Nf6 {[%emt 0:00:14]} 2. c4 {[%emt 0:00:11]} g6 {[%emt 0:00:16]} 3. g3 {[%emt 0:00:10]} Bg7 {[%emt 0:01:12]} 4. Bg2 {[%emt 0:00:12]} O-O {[%emt 0:00:11]} 5. Nf3 {[%emt 0:00:07]} d6 {[%emt 0:00:44]} 6. O-O {[%emt 0:00:03]} Nc6 {[%emt 0:00:59]} 7. Nc3 {[%emt 0:00:49]} a6 {[%emt 0:00:57]} 8. b3 {[%emt 0:01:05]} e5 {[%emt 0:03:09]} 9. e3 {[%emt 0:03:56]} Rb8 {[%emt 0:05:54]} 10. Bb2 {[%emt 0:02:37]} Bd7 {[%emt 0:01:49]} 11. Rc1 {[%emt 0:02:34]} b5 {[%emt 0:08:17]} 12. cxb5 {[%emt 0:04:18]} axb5 {[%emt 0:03:25]} 13. dxe5 {[%emt 0:04:33]} Nxe5 {[%emt 0:04:15]} 14. Nxe5 {[%emt 0:03:56]} dxe5 {[%emt 0:00:06]} 15. Nd5 {[%emt 0:01:44]} Nxd5 {[%emt 0:35:16]} 16. Qxd5 {[%emt 0:00:04]} Bf5 {[%emt 0:09:04]} 17. Qxd8 {[%emt 0:11:01]} Rfxd8 {[%emt 0:00:05]} 18. Rxc7 {[%emt 0:00:30]} Rd2 {[%emt 0:02:03]} 19. Bc3 {[%emt 0:01:12]} Rc2 {[%emt 0:06:44]} 20. Bd5 {[%emt 0:08:59]} Kh8 {[%emt 0:02:41]} 21. e4 {[%emt 0:02:14]} Bh3 {[%emt 0:06:08]} 22. Bxe5 {[%emt 0:02:52]} Rxc7 {[%emt 0:02:20]} 23. Bxc7 {[%emt 0:00:39]} Rc8 {[%emt 0:00:11]} 24. Rc1 {[%emt 0:00:47]} 1-0

[Event "V Copa Marcel Duchamp 2022"]
[Site "Montevideo"]
[Date "2022.02.13"]
[Round "2.21"]
[White "Rodriguez Buela, Martin"]
[Black "Lopez Azambuja, Nicolas"]
[Result "0-1"]
[ECO "A67"]
[WhiteElo "1796"]
[BlackElo "2318"]
[Annotator "ChessBase"]
[PlyCount "58"]
[EventDate "2022.02.12"]
[EventCountry "URU"]
[SourceTitle "playchess.com"]
[Source "ChessBase"]
[SourceQuality "1"]
[TimeControl "5400+30"]

1. d4 {[%emt 0:00:04]} Nf6 {[%emt 0:03:42]} 2. c4 {[%emt 0:00:13]} c5 {[%emt 0:00:09]} 3. d5 {[%emt 0:00:26]} e6 {[%emt 0:00:15]} 4. Nc3 {[%emt 0:00:34]} exd5 {[%emt 0:00:26]} 5. cxd5 {[%emt 0:00:13]} d6 {[%emt 0:00:16]} 6. e4 {[%emt 0:00:09]} g6 {[%emt 0:00:04]} 7. f4 {[%emt 0:00:28]} Bg7 {[%emt 0:00:50]} 8. Bb5+ {[%emt 0:00:16]} Nfd7 {[%emt 0:00:19]} 9. a4 {[%emt 0:00:11]} Qh4+ {[%emt 0:01:03]} 10. g3 {[%emt 0:09:31]} Qe7 {[%emt 0:00:41]} 11. Qc2 {[%emt 0:06:57]} Na6 {[%emt 0:01:12]} 12. Bxa6 {[%emt 0:03:21]} bxa6 {[%emt 0:00:01]} 13. Nf3 {[%emt 0:01:25]} O-O {[%emt 0:00:36]} 14. O-O {[%emt 0:01:55]} Rb8 {[%emt 0:03:08]} 15. Re1 {[%emt 0:04:01]} Rb4 {[%emt 0:05:03]} 16. a5 {[%emt 0:19:23]} Nf6 {[%emt 0:07:05]} 17. e5 {[%emt 0:14:03]} dxe5 {[%emt 0:05:48]} 18. d6 {[%emt 0:09:35]} Qb7 {[%emt 0:02:06]} 19. Nxe5 {[%emt 0:00:20]} Ng4 {[%emt 0:13:50]} 20. Na4 {[%emt 0:07:02]} Bf5 {[%emt 0:07:59]} 21. Qd1 {[%emt 0:10:28]} Rd4 {[%emt 0:04:10]} 22. Qf3 {[%emt 0:00:15]} Qb4 {[%emt 0:01:14]} 23. Nc3 {[%emt 0:03:39]} Re8 {[%emt 0:10:45]} 24. Ra4 {[%emt 0:02:20]} Qb8 {[%emt 0:01:40]} 25. d7 {[%emt 0:04:34]} Rxd7 {[%emt 0:02:35]} 26. Rd1 {[%emt 0:01:30]} Rxd1+ {[%emt 0:01:54]} 27. Qxd1 {[%emt 0:00:35]} Nxe5 {[%emt 0:00:10]} 28. fxe5 {[%emt 0:00:07]} Bxe5 {[%emt 0:00:07]} 29. Rc4 {[%emt 0:00:52]} Bxg3 {[%emt 0:01:07]} 0-1

[Event "V Copa Marcel Duchamp 2022"]
[Site "Montevideo"]
[Date "2022.02.13"]
[Round "2.23"]
[White "Martinez Tagliafico, Sergio"]
[Black "Coppola, Claudio"]
[Result "0-1"]
[ECO "A57"]
[WhiteElo "1780"]
[BlackElo "2285"]
[Annotator "ChessBase"]
[PlyCount "60"]
[EventDate "2022.02.12"]
[EventCountry "URU"]
[SourceTitle "playchess.com"]
[Source "ChessBase"]
[SourceQuality "1"]
[TimeControl "5400+30"]

1. d4 {[%emt 0:06:31]} Nf6 {[%emt 0:02:11]} 2. c4 {[%emt 0:01:00]} c5 {[%emt 0:00:02]} 3. d5 {[%emt 0:00:09]} b5 {[%emt 0:00:03]} 4. Qc2 {[%emt 0:00:29]} bxc4 {[%emt 0:00:20]} 5. e4 {[%emt 0:00:49]} g6 {[%emt 0:00:15]} 6. Bxc4 {[%emt 0:00:37]} d6 {[%emt 0:00:02]} 7. Nf3 {[%emt 0:00:40]} Nbd7 {[%emt 0:00:05]} 8. O-O {[%emt 0:00:18]} Bg7 {[%emt 0:00:03]} 9. Nc3 {[%emt 0:01:40]} O-O {[%emt 0:00:06]} 10. Re1 {[%emt 0:00:04]} Nh5 {[%emt 0:00:52]} 11. h3 {[%emt 0:15:33]} Rb8 {[%emt 0:03:52]} 12. b3 {[%emt 0:14:04]} Ba6 {[%emt 0:07:18]} 13. Bb2 {[%emt 0:26:15]} Bxc4 {[%emt 0:05:24]} 14. bxc4 {[%emt 0:00:18]} Qa5 {[%emt 0:00:34]} 15. Nd1 {[%emt 0:10:23]} Ne5 {[%emt 0:02:15]} 16. Bc3 {[%emt 0:06:39]} Nxf3+ {[%emt 0:00:11]} 17. gxf3 {[%emt 0:00:07]} Bxc3 {[%emt 0:08:56]} 18. Qxc3 {[%emt 0:00:22]} Qxc3 {[%emt 0:02:59]} 19. Nxc3 {[%emt 0:00:03]} Nf4 {[%emt 0:00:54]} 20. h4 {[%emt 0:07:00]} a6 {[%emt 0:02:10]} 21. Rab1 {[%emt 0:02:21]} Nd3 {[%emt 0:03:43]} 22. Rxb8 {[%emt 0:03:36]} Rxb8 {[%emt 0:00:01]} 23. Rb1 {[%emt 0:00:22]} Rb2 {[%emt 0:00:11]} 24. Rxb2 {[%emt 0:02:25]} Nxb2 {[%emt 0:00:03]} 25. Kf1 {[%emt 0:00:27]} Nxc4 {[%emt 0:00:07]} 26. Ke2 {[%emt 0:00:06]} Kg7 {[%emt 0:19:16]} 27. f4 {[%emt 0:00:45]} Na3 {[%emt 0:00:05]} 28. e5 {[%emt 0:00:56]} Nb5 {[%emt 0:03:08]} 29. Kd3 {[%emt 0:00:16]} Nxc3 {[%emt 0:01:51]} 30. Kxc3 {[%emt 0:00:03]} Kh6 {[%emt 0:00:19]} 0-1

[Event "V Copa Marcel Duchamp 2022"]
[Site "Montevideo"]
[Date "2022.02.13"]
[Round "2.24"]
[White "Carbone, Diego"]
[Black "Visillac, Alejandro"]
[Result "1-0"]
[ECO "E01"]
[WhiteElo "2272"]
[BlackElo "1814"]
[Annotator "ChessBase"]
[PlyCount "55"]
[EventDate "2022.02.12"]
[EventCountry "URU"]
[SourceTitle "playchess.com"]
[Source "ChessBase"]
[SourceQuality "1"]
[TimeControl "5400+30"]

1. d4 {[%emt 0:01:22]} e6 {[%emt 0:00:46]} 2. c4 {[%emt 0:00:34]} Nf6 {[%emt 0:00:12]} 3. g3 {[%emt 0:00:25]} d5 {[%emt 0:00:22]} 4. Bg2 {[%emt 0:00:12]} c5 {[%emt 0:00:59]} 5. Nf3 {[%emt 0:00:09]} Be7 {[%emt 0:00:22]} 6. O-O {[%emt 0:01:36]} Nc6 {[%emt 0:01:41]} 7. dxc5 {[%emt 0:06:53]} Bxc5 {[%emt 0:01:26]} 8. a3 {[%emt 0:04:35]} a5 {[%emt 0:06:11]} 9. cxd5 {[%emt 0:01:20]} Qxd5 {[%emt 0:08:05]} 10. Qc2 {[%emt 0:04:23]} Ba7 {[%emt 0:04:23]} 11. Nc3 {[%emt 0:12:38]} Qh5 {[%emt 0:07:29]} 12. h3 {[%emt 0:10:17]} O-O {[%emt 0:10:29]} 13. g4 {[%emt 0:07:57]} Nxg4 {[%emt 0:04:41]} 14. hxg4 {[%emt 0:00:41]} Qxg4 {[%emt 0:00:06]} 15. Qe4 {[%emt 0:01:32]} Qh5 {[%emt 0:01:03]} 16. Qh4 {[%emt 0:03:16]} Qg6 {[%emt 0:09:35]} 17. Qg5 {[%emt 0:02:49]} Qc2 {[%emt 0:00:07]} 18. Ne1 {[%emt 0:06:11]} Qg6 {[%emt 0:01:41]} 19. Qxg6 {[%emt 0:03:31]} fxg6 {[%emt 0:00:06]} 20. Nb5 {[%emt 0:00:44]} Nd4 {[%emt 0:01:03]} 21. Nxd4 {[%emt 0:00:53]} Bxd4 {[%emt 0:00:08]} 22. Nd3 {[%emt 0:01:19]} Ra6 {[%emt 0:01:37]} 23. Bg5 {[%emt 0:05:00]} h6 {[%emt 0:00:32]} 24. Be7 {[%emt 0:00:34]} Rf5 {[%emt 0:01:19]} 25. Rac1 {[%emt 0:00:53]} Bd7 {[%emt 0:03:22]} 26. Bxb7 {[%emt 0:00:43]} Rb6 {[%emt 0:00:26]} 27. Be4 {[%emt 0:00:17]} Rh5 {[%emt 0:00:47]} 28. Bxg6 {[%emt 0:00:57]} 1-0

[Event "V Copa Marcel Duchamp 2022"]
[Site "Montevideo"]
[Date "2022.02.13"]
[Round "2.25"]
[White "Kulik, Nicolas"]
[Black "Miranda, Rafael"]
[Result "1-0"]
[ECO "B99"]
[WhiteElo "1775"]
[BlackElo "2264"]
[Annotator "ChessBase"]
[PlyCount "48"]
[EventDate "2022.02.12"]
[EventCountry "URU"]
[SourceTitle "playchess.com"]
[Source "ChessBase"]
[SourceQuality "1"]
[TimeControl "5400+30"]

1. e4 c5 2. Nf3 {[%emt 0:00:10]} d6 {[%emt 0:00:17]} 3. d4 {[%emt 0:00:08]} cxd4 {[%emt 0:00:03]} 4. Nxd4 {[%emt 0:00:06]} Nf6 {[%emt 0:00:06]} 5. Nc3 {[%emt 0:00:15]} a6 {[%emt 0:00:02]} 6. Bg5 {[%emt 0:00:13]} e6 {[%emt 0:00:36]} 7. f4 {[%emt 0:00:10]} Be7 {[%emt 0:00:14]} 8. Qf3 {[%emt 0:00:31]} Qc7 {[%emt 0:00:05]} 9. O-O-O {[%emt 0:00:28]} Nbd7 {[%emt 0:00:08]} 10. g4 {[%emt 0:01:06]} h6 {[%emt 0:00:20]} 11. Bxf6 {[%emt 0:01:11]} Bxf6 {[%emt 0:00:11]} 12. Bg2 {[%emt 0:02:00]} g5 {[%emt 0:15:54]} 13. h4 {[%emt 0:12:16]} gxf4 {[%emt 0:02:33]} 14. g5 {[%emt 0:02:06]} hxg5 {[%emt 0:08:28]} 15. hxg5 {[%emt 0:00:01]} Rxh1 {[%emt 0:00:08]} 16. Bxh1 {[%emt 0:00:14]} Bxd4 {[%emt 0:00:07]} 17. Rxd4 {[%emt 0:00:04]} Qc5 {[%emt 0:00:08]} 18. Ne2 {[%emt 0:07:56]} Nf8 {[%emt 0:13:30]} 19. Qd3 {[%emt 0:02:25]} e5 {[%emt 0:14:25]} 20. Rxd6 {[%emt 0:05:04]} Bg4 {[%emt 0:00:17]} 21. Rd5 {[%emt 0:02:55]} Qf2 {[%emt 0:00:10]} 22. Rxe5+ {[%emt 0:03:07]} Ne6 {[%emt 0:00:06]} 23. Kd2 {[%emt 0:02:14]} Bxe2 {[%emt 0:00:26]} 24. Rxe6+ {[%emt 0:00:41]} fxe6 {[%emt 0:00:01]} 1-0